bitfinex-derivatives/quotes_BNBF0:USTF0_20250630
["timestamp","ask_amount","ask_price","bid_price","bid_amount"]
[1751298997906,0.2649652,657.22,656.33,1.06284477]
[1751298998111,0.2649652,657.22,656.34,1.06284477]
[1751298998407,0.2649652,657.22,656.35,1.06284477]
[1751298998612,0.2649652,657.22,656.36,1.06284477]
[1751298998907,0.2649652,657.22,656.37,1.06284477]
[1751298999105,0.2649652,657.22,656.38,1.06284477]
[1751298999308,0.2649652,657.22,656.39,1.06284477]
[1751298999608,0.2649652,657.22,656.4,1.06284477]
[1751298999805,0.2649652,657.22,656.41,1.06284477]
[1751299000011,0.2649652,657.22,656.42,1.06284477]
[1751299000305,0.2649652,657.22,656.22,2.017]
[1751299000509,0.2649652,657.22,656.23,1.06277615]
[1751299000712,0.2649652,657.22,656.24,1.06277615]
[1751299000910,0.2649652,657.22,656.25,1.06277615]
[1751299001108,0.2649652,657.22,656.26,1.06277615]
[1751299001307,0.2649652,657.22,656.27,1.06277615]
[1751299001511,0.2649652,657.22,656.28,1.06277615]
[1751299001711,0.2649652,657.22,656.29,1.06277615]
[1751299002007,0.2649652,657.22,656.3,1.06277615]
[1751299002207,0.2649652,657.22,656.31,1.06277615]
[1751299002406,0.2649652,657.22,656.32,1.06277615]
[1751299002609,0.2649652,657.22,656.33,1.06277615]
[1751299002910,0.2649652,657.22,656.29,2.286]
[1751299002911,0.2649652,657.22,656.34,1.06277615]
[1751299003112,0.2649652,657.22,656.35,1.06277615]
[1751299003408,0.2649652,657.22,656.36,1.06277615]
[1751299003608,0.2649652,657.22,656.37,1.06277615]
[1751299003811,0.2649652,657.22,656.38,1.06277615]
[1751299004016,0.2649652,657.22,656.39,1.06277615]
[1751299004311,0.2649652,657.22,656.4,1.06277615]
[1751299004508,0.2649652,657.22,656.41,1.06277615]
[1751299004712,0.2649652,657.22,656.42,1.06277615]
[1751299004912,0.2649652,657.22,656.29,2.286]
[1751299005110,0.2649652,657.22,656.3,1.06276371]
[1751299005313,0.2649652,657.22,656.31,1.06276371]
[1751299005509,0.2649652,657.22,656.32,1.06276371]
[1751299005710,0.2649652,657.22,656.33,1.06276371]
[1751299005912,0.2649652,657.22,656.34,1.06276371]
[1751299006229,0.2649652,657.22,656.35,1.06276371]
[1751299006514,0.2649652,657.22,656.36,1.06276371]
[1751299006711,0.2649652,657.22,656.37,1.06276371]
[1751299006913,0.2649652,657.22,656.38,1.06276371]
[1751299007114,0.2649652,657.22,656.39,1.06276371]
[1751299007313,0.2649652,657.22,656.4,1.06276371]
[1751299007515,0.2649652,657.22,656.41,1.06276371]
[1751299007818,0.2649652,657.22,656.29,2.286]
[1751299008018,0.2649652,657.22,656.3,1.06253403]
[1751299008215,0.2649652,657.22,656.31,1.06253403]
[1751299008417,0.2649652,657.22,656.32,1.06253403]
[1751299008616,0.2649652,657.22,656.33,1.06253403]
[1751299008818,0.2649652,657.22,656.34,1.06253403]
[1751299009017,0.2649652,657.22,656.35,1.06253403]
[1751299009215,0.2649652,657.22,656.36,1.06253403]
[1751299009421,0.2649652,657.22,656.37,1.06253403]
[1751299009720,0.2649652,657.22,656.38,1.06253403]
[1751299009920,0.2649652,657.22,656.39,1.06253403]
[1751299010116,0.2649652,657.22,656.4,1.06253403]
[1751299010322,0.2649652,657.22,656.41,1.06253403]
[1751299010522,0.2649652,657.22,656.42,1.06253403]
[1751299010719,0.2649652,657.22,656.29,2.286]
[1751299010922,0.2649652,657.22,656.3,1.06280898]
[1751299011120,0.2649652,657.22,656.31,1.06280898]
[1751299011420,0.2649652,657.22,656.32,1.06280898]
[1751299011623,0.2649652,657.22,656.33,1.06280898]
[1751299011818,0.2649652,657.22,656.34,1.06280898]
[1751299012019,0.2649652,657.22,656.35,1.06280898]
[1751299012224,0.2649652,657.22,656.36,1.06280898]
[1751299012520,3.8030012,657.55,656.37,1.06280898]
[1751299012725,3.8030012,658.15,656.38,1.06280898]
[1751299013026,0.26491881,657.32,656.39,1.06280898]
[1751299013219,3.8030012,658.16,656.4,1.06280898]
[1751299013523,0.26484623,657.71,656.41,1.06280898]
[1751299013724,0.26484623,657.71,656.29,2.286]
[1751299013925,0.26484623,657.71,656.3,1.06340828]
[1751299014120,0.26484623,657.71,656.31,1.06340828]
[1751299014318,0.26484623,657.71,656.32,1.06340828]
[1751299014621,0.26484623,657.71,656.33,1.06340828]
[1751299014824,0.26484623,657.71,656.34,1.06340828]
[1751299015024,0.26484623,657.71,656.35,1.06340828]
[1751299015224,0.26484623,657.71,656.36,1.06340828]
[1751299015418,0.26484623,657.71,656.37,1.06340828]
[1751299015622,0.26484623,657.71,656.38,1.06340828]
[1751299015824,0.26484623,657.71,656.39,1.06340828]
[1751299016020,0.26484623,657.71,656.22,2.017]
[1751299016225,0.26484623,657.71,656.23,1.06343159]
[1751299016426,0.26484623,657.71,656.24,1.06343159]
[1751299016626,0.26484623,657.71,656.25,1.06343159]
[1751299016825,0.26484623,657.71,656.26,1.06343159]
[1751299017120,0.26484623,657.71,656.27,1.06343159]
[1751299017325,0.26484623,657.71,656.28,1.06343159]
[1751299017526,0.26484623,657.71,656.29,1.06343159]
[1751299017721,0.26484623,657.71,656.3,1.06343159]
[1751299017920,0.26484623,657.71,656.31,1.06343159]
[1751299018122,0.26484623,657.71,656.32,1.06343159]
[1751299018323,0.26484623,657.71,656.33,1.06343159]
[1751299018528,0.26484623,657.71,656.22,2.017]
[1751299018529,0.26484623,657.71,656.34,1.06343159]
[1751299018825,0.26484623,657.71,656.35,1.06343159]
[1751299020423,0.26484623,657.71,656.36,1.06343159]
[1751299020623,0.26484623,657.71,656.34,2.982]
[1751299020624,0.26484623,657.71,656.37,1.06343159]
[1751299020827,0.26484623,657.71,656.38,1.06343159]
[1751299021123,0.26484623,657.71,656.39,1.06343159]
[1751299021323,0.26484623,657.71,656.4,1.06343159]
[1751299021526,0.26484623,657.71,656.41,1.06343159]
[1751299021731,0.26484623,657.71,656.42,1.06343159]
[1751299021923,0.26484623,657.71,656.43,1.06343159]
[1751299022224,0.26484623,657.71,656.34,2.982]
[1751299022225,0.26484623,657.71,656.44,1.06343159]
[1751299022425,0.26484623,657.71,656.45,1.06343159]
[1751299022626,0.26484623,657.71,656.46,1.06343159]
[1751299022826,0.26484623,657.71,656.47,1.06343159]
[1751299023027,0.26484623,657.71,656.48,1.06343159]
[1751299023230,0.26484623,657.71,656.49,1.06343159]
[1751299023428,0.26484623,657.71,656.5,1.06343159]
[1751299023631,0.26484623,657.71,656.51,1.06343159]
[1751299023830,0.26484623,657.71,656.52,1.06343159]
[1751299024030,0.26484623,657.71,656.34,2.982]
[1751299024228,0.26484623,657.71,656.35,1.06930517]
[1751299024529,0.26484623,657.71,656.36,1.06930517]
[1751299024734,0.26484623,657.71,656.37,1.06930517]
[1751299024930,0.26484623,657.71,656.38,1.06930517]
[1751299025131,0.26484623,657.71,656.39,1.06930517]
[1751299025430,0.26484623,657.71,656.4,1.06930517]
[1751299025628,0.26484623,657.71,656.41,1.06930517]
[1751299025833,0.26484623,657.71,656.42,1.06930517]
[1751299026036,0.26484623,657.71,656.43,1.06930517]
[1751299026235,0.26484623,657.71,656.44,1.06930517]
[1751299026432,0.26484623,657.71,656.45,1.06930517]
[1751299026733,0.26484623,657.71,656.46,1.06930517]
[1751299026935,0.26484623,657.71,656.47,1.06930517]
[1751299027136,0.26484623,657.71,656.48,1.06930517]
[1751299027334,0.26484623,657.71,656.49,1.06930517]
[1751299027536,0.26484623,657.71,656.5,1.06930517]
[1751299027836,0.26484623,657.71,656.51,1.06930517]
[1751299028033,0.26484623,657.71,656.52,1.06930517]
[1751299028233,0.26484623,657.71,656.53,1.06930517]
[1751299028536,0.26484623,657.71,656.54,1.06930517]
[1751299028737,0.26484623,657.71,656.34,2.982]
[1751299028937,0.26484623,657.71,656.35,1.0690898]
[1751299029137,0.26484623,657.71,656.36,1.0690898]
[1751299029334,0.26484623,657.71,656.37,1.0690898]
[1751299029535,0.26484623,657.71,656.38,1.0690898]
[1751299029736,0.26484623,657.71,656.39,1.0690898]
[1751299029937,0.26484623,657.71,656.4,1.0690898]
[1751299030134,0.26484623,657.71,656.41,1.0690898]
[1751299030337,0.26484623,657.71,656.42,1.0690898]
[1751299030538,0.26484623,657.71,656.43,1.0690898]
[1751299030838,0.26484623,657.71,656.44,1.0690898]
[1751299031039,0.26484623,657.71,656.45,1.0690898]
[1751299031234,0.26484623,657.71,656.46,1.0690898]
[1751299031435,0.26484623,657.71,656.47,1.0690898]
[1751299031639,0.26484623,657.71,656.48,1.0690898]
[1751299031841,0.26484623,657.71,656.49,1.0690898]
[1751299032037,0.26484623,657.71,656.34,2.982]
[1751299032038,0.26484623,657.71,656.5,1.0690898]
[1751299032340,0.26484623,657.71,656.51,1.0690898]
[1751299032539,0.26484623,657.71,656.52,1.0690898]
[1751299032737,0.26484623,657.71,656.53,1.0690898]
[1751299032934,0.26484623,657.71,656.54,1.0690898]
[1751299033137,0.26484623,657.71,656.55,1.06904065]
[1751299033438,0.26484623,657.71,656.34,2.982]
[1751299033642,0.26484623,657.71,656.35,1.06907014]
[1751299033840,0.26484623,657.71,656.36,1.06907014]
[1751299034135,0.26484623,657.71,656.37,1.06907014]
[1751299034337,0.26484623,657.71,656.38,1.06907014]
[1751299034540,0.26484623,657.71,656.34,2.982]
[1751299034541,0.26484623,657.71,656.39,1.06907014]
[1751299034738,0.26484623,657.71,656.4,1.06907014]
[1751299034941,0.26484623,657.71,656.41,1.06907014]
[1751299035241,0.26484623,657.71,656.42,1.06907014]
[1751299035439,0.26484623,657.71,656.43,1.06907014]
[1751299035638,0.26484623,657.71,656.44,1.06907014]
[1751299035837,0.26484623,657.71,656.45,1.06907014]
[1751299036140,0.26484623,657.71,656.46,1.06907014]
[1751299036341,0.26484623,657.71,656.47,1.06907014]
[1751299038441,0.26484623,657.71,656.48,1.06907014]
[1751299038638,0.26484623,657.71,656.49,1.06907014]
[1751299038841,0.26484623,657.71,656.5,1.06907014]
[1751299039041,0.26484623,657.71,656.51,1.06907014]
[1751299039243,0.26484623,657.71,656.52,1.06907014]
[1751299039443,0.26484623,657.71,656.53,1.06907014]
[1751299039641,0.26484623,657.71,656.54,1.06907014]
[1751299039843,0.26484623,657.71,656.46,2.302]
[1751299039844,0.26484623,657.71,656.55,1.06907014]
[1751299040039,0.26484623,657.71,656.46,2.302]
[1751299040040,0.26484623,657.71,656.56,1.06907014]
[1751299040247,0.26484623,657.71,656.57,1.06907014]
[1751299040442,0.26484623,657.71,656.58,1.06907014]
[1751299040745,0.26484623,657.71,656.59,1.06907014]
[1751299040948,0.26484623,657.71,656.6,1.06907014]
[1751299041242,0.26484623,657.71,656.61,1.06907014]
[1751299041443,0.26484623,657.71,656.46,2.302]
[1751299041646,0.26484623,657.71,656.47,1.06886039]
[1751299041848,0.26484623,657.71,656.48,1.06886039]
[1751299042049,0.26484623,657.71,656.49,1.06886039]
[1751299042249,0.26484623,657.71,656.5,1.06886039]
[1751299042463,0.26484623,657.71,656.51,1.06886039]
[1751299042650,0.26484623,657.71,656.52,1.06886039]
[1751299042948,0.26484623,657.71,656.53,1.06886039]
[1751299043149,0.26484623,657.71,656.54,1.06886039]
[1751299043344,0.26484623,657.71,656.55,1.06886039]
[1751299043545,0.26484623,657.71,656.56,1.06886039]
[1751299043747,0.26484623,657.71,656.57,1.06886039]
[1751299043950,0.26484623,657.71,656.58,1.06886039]
[1751299044151,0.26484623,657.71,656.59,1.06886039]
[1751299044348,0.26484623,657.71,656.46,2.302]
[1751299044554,0.26484623,657.71,656.47,1.06864149]
[1751299044751,0.26484623,657.71,656.48,1.06864149]
[1751299044955,0.26484623,657.71,656.49,1.06864149]
[1751299045151,0.26484623,657.71,656.5,1.06864149]
[1751299045348,0.26484623,657.71,656.46,2.302]
[1751299045349,0.26484623,657.71,656.51,1.06864149]
[1751299045564,0.26484623,657.71,656.52,1.06864149]
[1751299045753,0.26484623,657.71,656.53,1.06864149]
[1751299046050,0.26484623,657.71,656.54,1.06864149]
[1751299046253,0.26484623,657.71,656.55,1.06864149]
[1751299046453,0.26484623,657.71,656.56,1.06864149]
[1751299046650,0.26484623,657.71,656.57,1.06864149]
[1751299046851,0.26484623,657.71,656.58,1.06864149]
[1751299047052,0.26484623,657.71,656.59,1.06864149]
[1751299047255,0.26484623,657.71,656.53,1.654]
[1751299047455,0.26484623,657.71,656.54,1.06437237]
[1751299047752,0.26484623,657.71,656.53,1.654]
[1751299047753,0.26484623,657.71,656.55,1.06437237]
[1751299047956,0.26484623,657.71,656.56,1.06437237]
[1751299048256,0.26484623,657.71,656.57,1.06437237]
[1751299048452,0.26484623,657.71,656.58,1.06437237]
[1751299048654,0.26484623,657.71,656.53,1.654]
[1751299048852,0.26484623,657.71,656.54,1.06431744]
[1751299049057,0.26484623,657.71,656.55,1.06431744]
[1751299049256,0.26484623,657.71,656.53,1.654]
[1751299049257,0.26484623,657.71,656.56,1.06431744]
[1751299049454,0.26484623,657.71,656.57,1.06431744]
[1751299049758,0.26484623,657.71,656.58,1.06431744]
[1751299049958,0.26484623,657.71,656.59,1.06431744]
[1751299050258,0.26484623,657.71,656.53,1.654]
[1751299050457,0.26484623,657.71,656.54,1.06414037]
[1751299050655,0.26484623,657.71,656.55,1.06414037]
[1751299050956,0.26484623,657.71,656.56,1.06414037]
[1751299051155,0.26484623,657.71,656.57,1.06414037]
[1751299051354,0.26484623,657.71,656.58,1.06414037]
[1751299051556,0.26484623,657.71,656.59,1.06410746]
[1751299051756,0.26484623,657.71,656.6,2.242]
[1751299056059,0.26484623,657.71,656.61,1.06385021]
[1751299056263,0.26484623,657.71,656.6,2.242]
[1751299056461,0.26484623,657.71,656.61,1.06384092]
[1751299056660,0.26484623,657.71,656.6,2.242]
[1751299056976,0.26484623,657.71,656.61,1.06378763]
[1751299057166,0.26484623,657.71,656.62,1.06378763]
[1751299057363,0.26484623,657.71,656.63,1.06378763]
[1751299057566,0.26484623,657.71,656.64,1.06378763]
[1751299057762,0.26484623,657.71,656.6,2.242]
[1751299057964,0.26484623,657.71,656.61,1.06353252]
[1751299058163,0.26484623,657.71,656.6,2.242]
[1751299062769,0.26484623,657.71,656.61,3.241]
[1751299072475,0.26484623,657.71,656.62,1.951]
[1751299088002,0.26484623,657.71,656.63,3.006]
[1751299089501,4.06784743,657.71,656.63,3.006]
[1751299089991,3.8030012,657.67,656.63,3.006]
[1751299090497,3.8030012,657.65,656.63,3.006]
[1751299090998,3.8030012,657.66,656.63,3.006]
[1751299091996,3.8030012,657.56,656.63,3.006]
[1751299092598,3.8030012,657.57,656.63,3.006]
[1751299094093,3.8030012,657.67,656.63,3.006]
[1751299095698,3.8030012,657.68,656.63,3.006]
[1751299097397,3.8030012,657.67,656.63,3.006]
[1751299098317,3.8030012,657.52,656.63,3.006]
[1751299098898,3.8030012,657.7,656.63,3.006]
[1751299099301,3.8030012,657.69,656.63,3.006]
[1751299099898,0.26484623,657.71,656.63,3.006]
[1751299101103,3.8030012,657.67,656.63,3.006]
[1751299101502,3.8030012,657.43,656.63,3.006]
[1751299102601,3.8030012,657.42,656.63,3.006]
[1751299103005,3.8030012,657.42,656.64,2.665]
[1751299104702,3.8030012,657.43,656.64,2.665]
[1751299105611,3.8030012,657.44,656.64,2.665]
[1751299106303,3.8030012,657.51,656.64,2.665]
[1751299106607,3.8030012,657.52,656.64,2.665]
[1751299107107,3.8030012,657.55,656.64,2.665]
[1751299107406,2.27426176,657.01,656.64,2.665]
[1751299107603,2.27426176,657.04,656.64,2.665]
[1751299109407,2.27426176,657.05,656.64,2.665]
[1751299109902,2.27426176,657.07,656.64,2.665]
[1751299110307,2.27426176,657.08,656.64,2.665]
[1751299111906,2.27426176,657.07,656.64,2.665]
[1751299112211,0.26497428,657.15,656.64,2.665]
[1751299124524,0.26497428,657.15,656.64,2.665]
[1751299126930,2.27426176,657.08,656.64,2.665]
[1751299128135,2.27426176,657.07,656.64,2.665]
[1751299128731,2.27426176,657.03,656.64,2.665]
[1751299128960,2.27426176,657.01,656.64,2.665]
[1751299129434,2.27426176,657.02,656.64,2.665]
[1751299130135,2.27426176,657.06,656.64,2.665]
[1751299130834,2.27426176,657.04,656.64,2.665]
[1751299131535,2.27426176,657.03,656.64,2.665]
[1751299132831,2.27426176,657.02,656.64,2.665]
[1751299133235,2.27426176,657.03,656.64,2.665]
[1751299133535,2.27426176,657.02,656.64,2.665]
[1751299133837,2.27426176,657.03,656.64,2.665]
[1751299134435,2.27426176,657.02,656.64,2.665]
[1751299134636,2.27426176,657.01,656.64,2.665]
[1751299135636,2.27426176,657.02,656.64,2.665]
[1751299136436,2.27426176,657.01,656.64,2.665]
[1751299137236,2.27426176,657.02,656.64,2.665]
[1751299137435,2.27426176,657.01,656.64,2.665]
[1751299137736,2.27426176,657.06,656.64,2.665]
[1751299138931,2.27426176,657.05,656.64,2.665]
[1751299139436,2.27426176,657.04,656.64,2.665]
[1751299139936,2.27426176,656.99,656.64,2.665]
[1751299141533,2.27426176,656.97,656.64,2.665]
[1751299142537,5.32420169,657.7,656.64,2.665]
[1751299142538,2.27426176,656.95,656.64,2.665]
[1751299142833,2.27426176,656.96,656.64,2.665]
[1751299143037,2.27426176,656.94,656.64,2.665]
[1751299143835,2.27426176,656.93,656.64,2.665]
[1751299144240,2.27426176,656.94,656.64,2.665]
[1751299144533,2.27426176,656.97,656.64,2.665]
[1751299145333,2.27426176,656.96,656.64,2.665]
[1751299146438,2.27426176,656.95,656.64,2.665]
[1751299147640,2.27426176,657.07,656.64,2.665]
[1751299148439,2.27426176,657.06,656.64,2.665]
[1751299149037,2.27426176,657.07,656.64,2.665]
[1751299149242,2.27426176,657.06,656.64,2.665]
[1751299149740,5.32420169,658.1,656.64,2.665]
[1751299149741,2.27426176,657.08,656.64,2.665]
[1751299151739,2.27426176,657.15,656.64,2.665]
[1751299152040,2.27426176,657.21,656.64,2.665]
[1751299152745,2.27426176,657.17,656.64,2.665]
[1751299155246,2.27426176,657.16,656.64,2.665]
[1751299156849,2.27426176,657.15,656.64,2.665]
[1751299157045,2.27426176,657.15,656.12,2.586]
[1751299157246,2.27426176,657.15,656.13,1.06097166]
[1751299157446,2.27426176,657.15,656.14,1.06097166]
[1751299157650,2.27426176,657.15,656.15,1.06097166]
[1751299157846,2.27426176,657.15,656.16,1.06097166]
[1751299158152,2.27426176,657.15,656.17,1.06097166]
[1751299158445,2.27426176,657.15,656.18,1.06097166]
[1751299158651,2.27426176,657.15,656.19,1.06097166]
[1751299158946,2.27426176,657.15,656.2,1.06097166]
[1751299159150,2.27426176,657.15,656.21,1.06097166]
[1751299159450,2.27426176,657.15,656.22,1.06097166]
[1751299159651,2.27426176,657.15,656.23,1.06097166]
[1751299159947,2.27426176,657.15,656.24,1.06097166]
[1751299160149,2.27426176,657.15,656.25,1.06097166]
[1751299160345,2.27426176,657.15,656.26,1.06097166]
[1751299160547,2.27426176,657.15,655.67,2.25510332]
[1751299160548,2.27426176,657.07,656.27,1.06097166]
[1751299160748,2.27426176,657.07,656.28,1.06097166]
[1751299160948,2.27426176,657.07,656.29,1.06097166]
[1751299161248,2.27426176,657.07,656.3,1.06097166]
[1751299161552,2.27426176,657.07,656.31,1.06097166]
[1751299161752,2.27426176,656.93,656.32,1.06097166]
[1751299162052,2.27426176,656.93,656.33,1.06097166]
[1751299162351,2.27426176,656.93,656.34,1.06097166]
[1751299162548,2.27426176,656.97,656.35,1.06097166]
[1751299162852,2.27426176,656.96,656.36,1.06097166]
[1751299163054,2.27426176,656.96,656.37,1.06097166]
[1751299163352,2.27426176,656.96,656.29,1.987]
[1751299163353,2.27426176,657.02,656.38,1.06097166]
[1751299163648,2.27426176,657.04,656.39,1.06097166]
[1751299163847,2.27426176,657.03,656.4,1.06097166]
[1751299164051,2.27426176,657.0,656.41,1.06097166]
[1751299164351,2.27426176,657.0,656.42,1.06097166]
[1751299164648,2.27426176,657.0,656.43,1.06097166]
[1751299164848,2.27426176,657.0,656.44,1.06097166]
[1751299165053,2.27426176,657.0,656.45,1.06097166]
[1751299165251,2.27426176,657.0,656.46,1.06097166]
[1751299165451,2.27426176,657.0,656.47,1.06097166]
[1751299165651,2.27426176,657.0,656.29,1.987]
[1751299165852,2.27426176,657.0,656.3,1.06098368]
[1751299166052,2.27426176,657.0,656.31,1.06098368]
[1751299166254,2.27426176,657.0,656.32,1.06098368]
[1751299166453,2.27426176,656.98,656.33,1.06098368]
[1751299166649,2.27426176,656.98,656.34,1.06098368]
[1751299166854,2.27426176,657.0,656.35,1.06098368]
[1751299167053,2.27426176,657.0,656.36,1.06098368]
[1751299167254,2.27426176,657.0,656.37,1.06098368]
[1751299167552,2.27426176,657.01,656.38,1.06098368]
[1751299167853,2.27426176,657.01,656.39,1.06098368]
[1751299168050,2.27426176,657.01,656.4,1.06098368]
[1751299168252,2.27426176,657.01,656.41,1.06098368]
[1751299168451,2.27426176,657.01,656.42,1.06098368]
[1751299168651,2.27426176,657.01,656.43,1.06098368]
[1751299168850,2.27426176,657.01,656.44,1.06098368]
[1751299169052,2.27426176,657.01,656.45,1.06098368]
[1751299169251,2.27426176,657.01,656.46,1.06098368]
[1751299169552,2.27426176,657.01,656.47,1.06098368]
[1751299169752,2.27426176,657.01,656.29,1.987]
[1751299169952,2.27426176,657.01,656.3,1.06161552]
[1751299170257,2.27426176,657.01,656.31,1.06161552]
[1751299170453,2.27426176,657.01,656.32,1.06161552]
[1751299170653,2.27426176,657.01,656.33,1.06161552]
[1751299170953,2.27426176,657.01,656.34,1.06161552]
[1751299171154,2.27426176,657.01,656.35,1.06161552]
[1751299171353,2.27426176,657.01,656.36,1.06161552]
[1751299171554,2.27426176,657.01,656.37,1.06161552]
[1751299171754,2.27426176,657.01,656.38,1.06161552]
[1751299171955,2.27426176,657.01,656.39,1.06161552]
[1751299172158,2.27426176,657.01,656.4,1.06161552]
[1751299172454,2.27426176,656.98,656.41,1.06161552]
[1751299172657,2.27426176,656.98,656.42,1.06161552]
[1751299172857,5.32420169,657.77,656.43,1.06161552]
[1751299172858,2.27426176,656.97,656.43,1.06161552]
[1751299173054,2.27426176,656.97,656.44,1.06161552]
[1751299173256,2.27426176,656.97,656.45,1.06161552]
[1751299173460,2.27426176,656.97,656.29,1.987]
[1751299173755,2.27426176,656.97,656.3,1.06155459]
[1751299173959,2.27426176,656.97,656.31,1.06155459]
[1751299174259,2.27426176,656.97,656.29,1.987]
[1751299174260,2.27426176,656.97,656.32,1.06155459]
[1751299174458,2.27426176,656.97,656.33,1.06155459]
[1751299174761,2.27426176,656.97,656.34,1.06155459]
[1751299174956,2.27426176,656.97,656.35,1.06155459]
[1751299175156,2.27426176,656.97,656.36,1.06155459]
[1751299175356,2.27426176,656.97,656.37,1.06155459]
[1751299175656,2.27426176,656.97,656.38,1.06155459]
[1751299175856,2.27426176,656.97,656.39,1.06155459]
[1751299176056,2.27426176,656.97,656.4,1.06155459]
[1751299176354,2.27426176,656.98,656.41,1.06155459]
[1751299176655,2.27426176,656.95,656.42,1.06155459]
[1751299176860,2.27426176,656.95,656.43,1.06155459]
[1751299177056,2.27426176,656.94,656.44,1.06155459]
[1751299177260,2.27426176,656.95,656.45,1.06155459]
[1751299177454,2.27426176,656.95,656.29,1.987]
[1751299177755,2.27426176,656.94,656.3,1.0614933]
[1751299177958,2.27426176,656.94,656.31,1.0614933]
[1751299178157,2.27426176,656.94,656.32,1.0614933]
[1751299178360,2.27426176,656.94,656.33,1.0614933]
[1751299178558,2.27426176,656.94,656.34,1.0614933]
[1751299178757,2.27426176,656.94,656.29,1.987]
[1751299178758,2.27426176,656.94,656.35,1.0614933]
[1751299179060,2.27426176,656.94,656.36,1.0614933]
[1751299179258,2.27426176,656.94,656.37,1.0614933]
[1751299179461,2.27426176,656.94,656.38,1.0614933]
[1751299179662,2.27426176,656.94,656.39,1.0614933]
[1751299179862,2.27426176,656.94,656.4,1.0614933]
[1751299180157,2.27426176,656.94,656.41,1.0614933]
[1751299180359,2.27426176,656.94,656.42,1.0614933]
[1751299180558,3.8030012,657.36,656.43,1.0614933]
[1751299180559,2.27426176,656.96,656.43,1.0614933]
[1751299180758,2.27426176,656.96,656.29,1.987]
[1751299180759,2.27426176,656.98,656.44,1.0614933]
[1751299180964,2.27426176,656.98,656.45,1.0614933]
[1751299181265,2.27426176,656.98,656.29,1.987]
[1751299181560,2.27426176,656.98,656.3,1.06155776]
[1751299181762,2.27426176,656.98,656.31,1.06155776]
[1751299181967,2.27426176,656.98,656.32,1.06155776]
[1751299182160,2.27426176,656.98,656.33,1.06155776]
[1751299182364,2.27426176,656.98,656.34,1.06155776]
[1751299182561,2.27426176,656.98,656.35,1.06155776]
[1751299182765,2.27426176,656.98,656.36,1.06155776]
[1751299183065,2.27426176,656.98,656.37,1.06155776]
[1751299183263,2.27426176,656.98,656.38,1.06155776]
[1751299183463,2.27426176,656.98,656.39,1.06155776]
[1751299183663,2.27426176,656.98,656.4,1.06155776]
[1751299183966,2.27426176,656.98,656.41,1.06155776]
[1751299184166,2.27426176,656.98,656.42,1.06155776]
[1751299184466,2.27426176,656.98,656.43,1.06155776]
[1751299184663,2.27426176,656.98,656.44,1.06155776]
[1751299184964,2.27426176,656.98,656.45,1.06155776]
[1751299185165,2.27426176,656.98,656.29,1.987]
[1751299185364,2.27426176,656.99,656.3,1.06151424]
[1751299185567,2.27426176,656.99,656.31,1.06151424]
[1751299185864,2.27426176,656.99,656.32,1.06151424]
[1751299186063,2.27426176,656.99,656.33,1.06151424]
[1751299186264,2.27426176,656.99,656.34,1.06151424]
[1751299186466,2.27426176,656.99,656.35,1.06151424]
[1751299186665,2.27426176,656.99,656.36,1.06151668]
[1751299186867,2.27426176,656.99,656.37,1.06151668]
[1751299187066,2.27426176,656.99,656.38,1.06151668]
[1751299187366,2.27426176,656.99,656.39,1.06151668]
[1751299187565,2.27426176,656.99,656.4,1.06151668]
[1751299187763,2.27426176,656.99,656.41,1.06151668]
[1751299187966,2.27426176,656.99,656.42,1.06151668]
[1751299188164,2.27426176,656.99,656.43,1.06151668]
[1751299188365,2.27426176,656.99,656.44,1.06151668]
[1751299188565,2.27426176,656.99,656.45,1.06151668]
[1751299188766,2.27426176,656.99,656.29,1.987]
[1751299188966,2.27426176,656.99,656.3,1.06152482]
[1751299189165,2.27426176,656.99,656.31,1.06152482]
[1751299189362,2.27426176,656.99,656.32,1.06152482]
[1751299189565,2.27426176,656.99,656.33,1.06152482]
[1751299189764,2.27426176,656.99,656.34,1.06152482]
[1751299190064,2.27426176,656.99,656.35,1.06152482]
[1751299190265,2.27426176,657.1,656.36,1.06152482]
[1751299190466,2.27426176,657.09,656.37,1.06152482]
[1751299190674,2.27426176,657.09,656.38,1.06152482]
[1751299190865,2.27426176,657.1,656.39,1.06152482]
[1751299191166,2.27426176,657.11,656.4,1.06152482]
[1751299191365,2.27426176,657.11,656.41,1.06152482]
[1751299191566,2.27426176,657.11,656.42,1.06152482]
[1751299191870,2.27426176,657.11,656.43,1.06152482]
[1751299192070,2.27426176,657.11,656.44,1.06152482]
[1751299192270,2.27426176,657.13,656.45,1.06152482]
[1751299192467,2.27426176,657.13,656.46,1.06152482]
[1751299192767,2.27426176,657.13,656.47,1.06152482]
[1751299192976,2.27426176,657.13,656.29,1.987]
[1751299193272,2.27426176,657.13,656.3,1.0615795]
[1751299193471,2.27426176,657.13,656.31,1.0615795]